[Event "4th Tata Steel India Blitz Women 2022"]
[Site "Kolkota"]
[Date "2022.12.04"]
[Round "16.4"]
[White "Muzychuk, Anna"]
[Black "Harika, Dronavalli"]
[Result "0-1"]
[ECO "B30"]
[WhiteElo "2525"]
[BlackElo "2507"]
[Annotator "TA"]
[PlyCount "60"]
[EventDate "2022.11.29"]
[EventType "tourn"]
[EventCountry "IND"]
[SourceTitle "playchess.com"]
[Source "ChessBase"]
[SourceQuality "1"]
[TimeControl "180+2"]

{[%evp 9,60,47,49,43,49,32,33,4,5,0,18,0,2,10,0,-43,-36,-51,-52,-48,-37,-55,-45,-111,-116,-122,-111,-142,-51,-99,-89,-152,0,-45,-10,-172,0,0,0,0,0,-319,-320,-366,-362,-404,-140,-173,-162,-204,-205,-1085,-1026]} 1. e4 {[%emt 0:00:00]} c5 {[%emt 0:00:00]} 2. Nf3 {[%emt 0:00:01]} Nc6 {[%emt 0:00:01]} 3. Bb5 {[%emt 0:00:01]} e5 {[%emt 0:00:01]} 4. O-O {[%emt 0:00:07]} Bd6 {[%emt 0:00:01]} 5. c3 {[%emt 0:00:08]} a6 {[%emt 0:00:01]} 6. Ba4 {[%emt 0:00:07] B30: Sicilian: 2...Nc6 3 Bb5, lines without ...g6.} b5 {[%emt 0:00:02] Inhibits d4.} 7. Bc2 {[%emt 0:00:05]} Nge7 {[%emt 0:00:10]} 8. d4 {[%emt 0:00:05] White is slightly better.} cxd4 {[%emt 0:00:04]} 9. cxd4 {[%emt 0:00:01]} exd4 {[%emt 0:00:02]} 10. Nxd4 {[%emt 0:00:02]} Nxd4 {[%emt 0:00:03]} 11. Qxd4 {[%emt 0:00:01]} Qc7 {[%emt 0:00:04][%csl LRc2,LRh2]} 12. Nc3 {[%emt 0:00:16]} (12. Qxg7 Bxh2+ 13. Kh1 Be5 $17) 12... Bxh2+ {[%emt 0:00:07]} 13. Kh1 {[%emt 0:00:01][%cal Of2f4]} Be5 {[%emt 0:00:01] Inhibits f4.} 14. Qd3 {[%emt 0:00:00]} Bb7 {[%emt 0:00:35] [#]} 15. Bd2 $146 {[%emt 0:00:16]} ({Predecessor:} 15. f4 Bxc3 16. bxc3 Qc4 17. Qxc4 bxc4 18. Ba3 Bc6 19. Rab1 h5 20. f5 h4 21. Kh2 {0-1 (44) Estrada Nieto,J (2260)-Gascon del Nogal,J (2461) Chess.com INT 2022}) 15... Qd6 {[%emt 0:00:13]} 16. Qe2 {[%emt 0:00:30]} (16. Qxd6 $15 Bxd6 17. f3) 16... Rc8 $17 {[%emt 0:00:12] Hoping for ...b4. Black is more active.} 17. Bb3 {[%emt 0:00:42]} O-O {[%emt 0:00:06]} (17... Bf4 18. Bxf4 Qxf4 19. Rfd1 $15) 18. Rad1 {[%emt 0:00:16]} Qf6 {[%emt 0:00:01]} ({Black should play} 18... Qg6 $17 {[%cal Oc8c3] White must now prevent ...Rxc3!} 19. Rfe1 b4) 19. f4 {[%emt 0:00:08]} (19. Qg4 $15 {is more appropriate.}) 19... Bd4 {[%emt 0:00:26][%cal Rf6h4]} 20. Rf3 {[%emt 0:00:11]} ({Better is} 20. Qh5) 20... Ng6 $2 {[%emt 0:00:07]} (20... Rfe8 $17 {Threatens to win with ...b4.} 21. Qd3 b4) 21. Bd5 {[%emt 0:00:11] Inhibits b4.} Bc6 $36 {[%emt 0:00:09][%mdl 2048] With the idea ...Bxc3. Black fights for an advantage.} 22. a3 $2 {[%emt 0:00:21] [#]} (22. f5 $11) 22... Rfe8 $2 {[%emt 0:00:19]} (22... Bxc3 $1 $19 23. Bxc3 Qh4+ 24. Kg1 Bxd5 25. exd5 Rfe8) 23. Qd3 $11 {[%emt 0:00:01]} Bxc3 {[%emt 0:00:30]} 24. Bxc3 {[%emt 0:00:07]} Qh4+ {[%emt 0:00:01]} 25. Kg1 $2 {[%emt 0:00:06][%mdl 8192] [#]} (25. Rh3 $11 Qg4 26. Rg3 (26. Bxc6 $2 dxc6 27. Rf1 Nxf4 $19) 26... Qh4+ 27. Rh3) 25... Bxd5 $1 $19 {[%emt 0:00:06]} ({Not} 25... Nxf4 26. g3 Nxd3 27. Bxf7+ Kh8 28. gxh4 $14) 26. Qxd5 {[%emt 0:00:03]} Nxf4 {[%emt 0:00:07]} 27. Qd2 {[%emt 0:00:05]} Ne6 {[%emt 0:00:04]} (27... Rxe4 $19 {...Ne2+ is the strong threat.} 28. Re1 Rce8 29. Rxe4 Rxe4) 28. Qxd7 {[%emt 0:00:03]} Ng5 {[%emt 0:00:09] Chess con chili.} ({Much less strong is} 28... Qxe4 29. Qxf7+ Kh8 30. Rg3 $18) 29. Rfd3 {[%emt 0:00:01]} Nxe4 {[%emt 0:00:03]} ({Weaker is} 29... Qxe4 30. Re1 Qa8 31. Rxe8+ Rxe8 32. Rd6) 30. Qxc8 $2 {[%emt 0:00:03]} (30. Rf3 Qh5 31. a4) 30... Rxc8 {[%emt 0:00:02] Weighted Error Value: White=0.68/Black=0.31} 0-1

[Event "4th Tata Steel India Blitz Women 2022"]
[Site "Kolkota"]
[Date "2022.12.04"]
[Round "17.1"]
[White "Dzagnidze, Nana"]
[Black "Muzychuk, Anna"]
[Result "1/2-1/2"]
[ECO "D32"]
[WhiteElo "2517"]
[BlackElo "2525"]
[Annotator "TA"]
[PlyCount "43"]
[EventDate "2022.11.29"]
[EventType "tourn"]
[EventCountry "IND"]
[SourceTitle "playchess.com"]
[Source "ChessBase"]
[SourceQuality "1"]
[TimeControl "180+2"]

{[%evp 11,43,-8,-2,-45,-29,-52,8,4,0,0,26,0,32,0,4,-87,1,0,0,0,0,6,8,0,6,-5,-7,-6,-4,-7,-6,-4,-6,-8]} 1. d4 {[%emt 0:00:01]} d5 {[%emt 0:00:00]} 2. c4 {[%emt 0:00:01]} e6 {[%emt 0:00:01][%cal Be7e6,Be6d5,Bd5d4][%mdl 32]} 3. Nc3 {[%emt 0:00:03]} c5 {[%emt 0:00:01]} 4. cxd5 {[%emt 0:00:07]} cxd4 {[%emt 0:00:01]} 5. Qxd4 {[%emt 0:00:03]} Nc6 {[%emt 0:00:23]} 6. Qa4 {[%emt 0:00:30]} exd5 {[%emt 0:00:04]} 7. Nf3 {[%emt 0:00:03] D32: Tarrasch Defence: Sidelines and lines without g3.} d4 $1 {[%emt 0:00:33]} 8. Nb5 {[%emt 0:00:08][%cal Oc1d2]} Bb4+ {[%emt 0:00:09]} (8... Nf6 $15) 9. Bd2 $11 {[%emt 0:00:02]} Bxd2+ {[%emt 0:00:00]} 10. Nxd2 {[%emt 0:00:13]} Nge7 {[%emt 0:00:40]} (10... Be6 $5 {[%cal Ra7a6]}) 11. Nf3 {[%emt 0:00:10][%cal Rb5d4] [#]} Nf5 $146 {[%emt 0:00:05]} ({Predecessor:} 11... O-O 12. Nbxd4 Nxd4 13. Qxd4 Qa5+ 14. Qd2 Qb6 15. e3 Rd8 16. Nd4 Nc6 17. Rd1 Nxd4 18. exd4 {½-½ (46) Lewandowska,K (2145)-Limbach,R (2145) Mamaia 1991}) 12. Rd1 {[%emt 0:00:15][%cal Og2g4] Threatens to win with g4!} (12. g4 $5 {[%cal Rg4f5]} Nfe7 13. Bg2 $14 (13. Nfxd4 O-O $11)) 12... O-O {[%emt 0:00:03]} 13. e3 {[%emt 0:00:10] [#]} (13. e4 $11) 13... Qb6 {[%emt 0:00:12]} (13... Bd7 $1 $17 14. Bd3 (14. Nfxd4 $2 {too greedy.} Ncxd4 15. Rxd4 Nxd4 $19) 14... a6 15. Bxf5 (15. Nbxd4 $2 Ncxd4 16. Qb4 a5 $19) 15... axb5) 14. Nbxd4 {[%emt 0:00:18] The position is equal.} Ncxd4 {[%emt 0:00:10]} 15. Nxd4 {[%emt 0:00:02]} Qxb2 {[%emt 0:00:01]} 16. Qb3 {[%emt 0:00:20] Prevents Qc3+.} Qxb3 {[%emt 0:00:05]} 17. axb3 {[%emt 0:00:03]} (17. Nxb3 {simplifies} Be6 18. Bb5 Rfd8 19. O-O) 17... Rd8 {[%emt 0:00:20]} 18. Nxf5 {[%emt 0:00:20][%cal Rd1d8] [#]} Rxd1+ {[%emt 0:00:04]} 19. Kxd1 {[%emt 0:00:01]} Bxf5 {[%emt 0:00:00]} 20. Bc4 {[%emt 0:00:09]} Kf8 {[%emt 0:00:11]} 21. Ke2 {[%emt 0:00:02]} Ke7 {[%emt 0:00:01]} 22. Bd5 {[%emt 0:00:17] Weighted Error Value: White=0.25 (precise) /Black=0.21 (precise)} 1/2-1/2

[Event "4th Tata Steel India Blitz Women 2022"]
[Site "Kolkota"]
[Date "2022.12.04"]
[Round "17.2"]
[White "Ushenina, Anna"]
[Black "Savitha Shri B"]
[Result "1/2-1/2"]
[ECO "D78"]
[WhiteElo "2454"]
[BlackElo "2411"]
[Annotator "TA"]
[PlyCount "107"]
[EventDate "2022.11.29"]
[EventType "tourn"]
[EventCountry "IND"]
[SourceTitle "playchess.com"]
[Source "ChessBase"]
[SourceQuality "1"]
[TimeControl "180+2"]

{[%evp 13,107,10,34,-29,0,-37,-37,-39,-40,-44,-33,-39,-37,-40,-31,-52,-54,-62,-24,-24,-24,-24,-12,-13,0,-12,-9,-18,-18,-18,-18,-24,-14,-14,0,-14,-14,-16,-9,-13,-7,-7,-7,-12,0,0,0,-7,0,0,0,0,0,0,0,-7,0,-7,-7,-16,-18,-16,-16,-19,-19,-20,-20,-30,0,0,0,0,0,0,0,0,0,0,0,0,2,2,3,0,0,0,0,0,0,0,0,0,0,0,0,0]} 1. d4 {[%emt 0:00:01]} Nf6 {[%emt 0:00:01]} 2. c4 {[%emt 0:00:01]} g6 {[%emt 0:00:02]} 3. g3 {[%emt 0:00:03]} c6 {[%emt 0:00:03]} 4. Bg2 {[%emt 0:00:02]} d5 {[%emt 0:00:00]} 5. Nf3 {[%emt 0:00:12]} Bg7 {[%emt 0:00:02]} 6. O-O {[%emt 0:00:02]} O-O {[%emt 0:00:02]} 7. Ne5 {[%emt 0:00:02] 7.Nc3 is the recent fashion.} Nbd7 {[%emt 0:00:03]} (7... Ng4 $5 {[%cal Rg4e5]}) 8. Bf4 {[%emt 0:00:19] D78: Fianchetto Grünfeld: 6 0-0 c6.} (8. Nc3 $14) 8... Nh5 {[%emt 0:00:08] [#]} 9. Nxd7 $146 {[%emt 0:00:06]} ({Predecessor:} 9. cxd5 cxd5 10. Bxd5 Nxf4 11. gxf4 Nxe5 12. dxe5 Bh3 13. Bg2 Bxg2 14. Kxg2 Qb6 15. Qb3 Qxb3 16. axb3 {1-0 (39) Valmana Canto,J (2323)-Batista Yanez,J (2008) Lanzarote 2018}) 9... Bxd7 {[%emt 0:00:06]} 10. cxd5 {[%emt 0:00:06] Black is slightly better.} Nxf4 {[%emt 0:00:04]} 11. gxf4 {[%emt 0:00:02]} cxd5 {[%emt 0:00:01]} 12. e3 {[%emt 0:00:05]} e6 {[%emt 0:00:00]} 13. Qb3 {[%emt 0:00:09]} Bc6 {[%emt 0:00:34]} 14. Nc3 {[%emt 0:00:26]} Kh8 {[%emt 0:00:02]} 15. Rac1 {[%emt 0:00:08]} g5 {[%emt 0:00:03]} 16. fxg5 $1 {[%emt 0:00:05]} Qxg5 {[%emt 0:00:01][%cal Og7d4] And now ...Bxd4! would win.} 17. f4 {[%emt 0:00:02]} Qf5 {[%emt 0:00:15]} 18. Qc2 {[%emt 0:00:02] Threatens to win with Qxf5.} Qg6 {[%emt 0:00:30]} 19. Kh1 {[%emt 0:00:13]} Rg8 {[%emt 0:00:09]} 20. Bf3 {[%emt 0:00:02]} Bf6 {[%emt 0:00:05]} 21. Rg1 {[%emt 0:00:06]} Qh6 {[%emt 0:00:03]} 22. a3 $1 {[%emt 0:00:14]} Qh3 {[%emt 0:00:01]} 23. Qe2 {[%emt 0:00:06]} a6 {[%emt 0:00:12]} 24. Rxg8+ {[%emt 0:00:04]} Rxg8 {[%emt 0:00:01]} 25. Rg1 {[%emt 0:00:04]} Rxg1+ {[%emt 0:00:11]} 26. Kxg1 {[%emt 0:00:01]} Qh4 {[%emt 0:00:05]} 27. Qf2 {[%emt 0:00:08]} Qh6 {[%emt 0:00:12]} 28. Qg2 {[%emt 0:00:08]} Qg6 {[%emt 0:00:05]} 29. Bd1 {[%emt 0:00:19]} Qd3 {[%emt 0:00:02]} 30. Qe2 {[%emt 0:00:02]} Qg6+ {[%emt 0:00:04]} (30... Qxe2 {simplifies} 31. Nxe2 Kg7 32. Kf2 Kf8) 31. Qg2 {[%emt 0:00:02]} Kg7 {[%emt 0:00:16]} 32. Bc2 {[%emt 0:00:04]} Qxg2+ 33. Kxg2 $11 {[%emt 0:00:01][%mdl 4096] Endgame KBB-KBN} Bh4 {[%emt 0:00:09]} 34. Kf1 {[%emt 0:00:06]} h6 {[%emt 0:00:06]} 35. Bd3 {[%emt 0:00:07]} Kf6 {[%emt 0:00:03]} 36. b4 {[%emt 0:00:11]} Ke7 {[%emt 0:00:16]} 37. Ne2 {[%emt 0:00:12]} Kf8 {[%emt 0:00:05]} 38. Ng1 {[%emt 0:00:03]} Be7 {[%emt 0:00:02]} 39. Nf3 {[%emt 0:00:01]} Be8 {[%emt 0:00:09]} 40. Ne5 {[%emt 0:00:03]} f6 {[%emt 0:00:03]} 41. Ng6+ {[%emt 0:00:03] The position is equal.} Bxg6 {[%emt 0:00:02]} 42. Bxg6 {[%emt 0:00:01] KB-KB} a5 {[%emt 0:00:02]} 43. bxa5 {[%emt 0:00:02]} Bxa3 {[%emt 0:00:01]} 44. Bd3 {[%emt 0:00:00]} Bb4 {[%emt 0:00:03]} 45. a6 {[%emt 0:00:01]} bxa6 46. Bxa6 {[%emt 0:00:01]} Bd2 {[%emt 0:00:02]} 47. Ke2 {[%emt 0:00:01]} Bc1 {[%emt 0:00:01]} 48. Bc8 {[%emt 0:00:01]} Ke7 {[%emt 0:00:01]} 49. Kf2 {[%emt 0:00:02]} Kd6 {[%emt 0:00:02]} 50. Ke2 {[%emt 0:00:01]} e5 {[%emt 0:00:01]} 51. fxe5+ {[%emt 0:00:01]} fxe5 {[%emt 0:00:00]} 52. dxe5+ {[%emt 0:00:03]} Kxe5 {[%emt 0:00:02]} 53. Kf3 $1 {[%emt 0:00:01]} Bd2 {[%emt 0:00:03]} 54. h3 {[%emt 0:00:02] Weighted Error Value: White=0.06 (flawless) /Black=0.05 (flawless)} 1/2-1/2

[Event "4th Tata Steel India Blitz Women 2022"]
[Site "Kolkota"]
[Date "2022.12.04"]
[Round "17.3"]
[White "Kiolbasa, Oliwia"]
[Black "Vaishali, Rameshbabu"]
[Result "0-1"]
[ECO "C79"]
[WhiteElo "2406"]
[BlackElo "2454"]
[Annotator "TA"]
[PlyCount "90"]
[EventDate "2022.11.29"]
[EventType "tourn"]
[EventCountry "IND"]
[SourceTitle "playchess.com"]
[Source "ChessBase"]
[SourceQuality "1"]
[TimeControl "180+2"]

{[%evp 19,90,35,33,8,34,23,35,27,19,21,35,0,0,2,0,0,0,-95,-91,-91,-91,-110,-112,-131,-137,-133,-104,-137,-134,-144,-137,-144,-136,-141,-139,-140,-148,-187,-116,-280,-276,-269,-286,-276,-285,-308,-305,-311,-298,-409,-395,-431,-442,-424,-418,-498,-515,-510,-490,-596,-606,-636,-631,-5285,-5469,-5393,-5210,-3562,-2500,-1902,-1819,-968,-755]} 1. e4 {[%emt 0:00:01]} e5 {[%emt 0:00:04]} 2. Nf3 {[%emt 0:00:01]} Nc6 {[%emt 0:00:01]} 3. Bb5 {[%emt 0:00:02]} a6 {[%emt 0:00:01]} 4. Ba4 {[%emt 0:00:01]} d6 {[%emt 0:00:02]} 5. O-O {[%emt 0:00:18]} Bd7 {[%emt 0:00:02]} 6. d4 {[%emt 0:00:01]} Nf6 {[%emt 0:00:12]} 7. Bxc6 {[%emt 0:00:09]} Bxc6 {[%emt 0:00:02]} 8. Re1 {[%emt 0:00:01]} Be7 {[%emt 0:00:34]} 9. Nc3 {[%emt 0:00:02]} exd4 {[%emt 0:00:16]} 10. Nxd4 {[%emt 0:00:02]} O-O {[%emt 0:00:07]} 11. b3 {[%emt 0:00:01] C79: Ruy Lopez: Steinitz-type lines with 3...a6 4 Ba4 Nf6 5 0-0 d6.} Nd7 {[%emt 0:00:11]} 12. Bb2 {[%emt 0:00:15]} Bf6 {[%emt 0:00:04] [#]} 13. h3 $146 {[%emt 0:00:14] White is slightly better.} ({Predecessor:} 13. Nxc6 bxc6 14. Na4 Re8 15. Qd2 Bxb2 16. Nxb2 Qf6 17. Rab1 a5 18. a4 Nc5 19. f3 {½-½ (59) Ragger,M (2696)-Ovsejevitsch,S (2603) Switzerland 2019}) 13... Re8 {[%emt 0:00:05]} 14. Nxc6 {[%emt 0:01:19]} bxc6 {[%emt 0:00:02]} 15. Na4 {[%emt 0:00:02][%cal Bc3a4,Ba4b2,Bb2c4][%mdl 32]} Bxb2 {[%emt 0:00:10]} 16. Nxb2 {[%emt 0:00:01]} Qf6 {[%emt 0:00:03]} 17. Nc4 {[%emt 0:00:03]} Nc5 {[%emt 0:00:12]} 18. Qf3 {[%emt 0:00:54] [#]} (18. e5 $11 {remains equal.} dxe5 19. Qd2) 18... Nxe4 $1 $17 {[%emt 0:00:19]} 19. Qxf6 {[%emt 0:00:02]} Nxf6 {[%emt 0:00:02]} 20. Na5 {[%emt 0:00:01]} c5 {[%emt 0:00:04]} 21. c4 {[%emt 0:00:01]} Re6 {[%emt 0:00:13]} 22. Kf1 {[%emt 0:00:06]} Rae8 {[%emt 0:00:07]} 23. Rxe6 {[%emt 0:00:05]} fxe6 {[%emt 0:00:04][%mdl 4096] Endgame KRN-KRN} ({Inferior is} 23... Rxe6 24. Nc6 $15) 24. a3 {[%emt 0:00:03]} Rb8 {[%emt 0:00:04]} 25. Ke2 {[%emt 0:00:03]} Kf7 {[%emt 0:00:03]} 26. Kd3 {[%emt 0:00:01]} Ke8 {[%emt 0:00:09]} 27. Re1 {[%emt 0:00:03] [#]} Kd7 {[%emt 0:00:02]} 28. Kc3 {[%emt 0:00:01]} d5 {[%emt 0:00:12]} (28... Rf8 $19 {White must now prevent ...Nh5.} 29. Kd2 Nh5) 29. Rd1 $2 {[%emt 0:00:03] Loses the game.} (29. Kc2 $17 {was worth a try.}) 29... Ne4+ $19 {[%emt 0:00:05]} 30. Kc2 {[%emt 0:00:02]} Nxf2 {[%emt 0:00:10]} 31. Rf1 {[%emt 0:00:01]} Rf8 {[%emt 0:00:03]} 32. b4 {[%emt 0:00:03]} cxb4 {[%emt 0:00:04]} 33. axb4 {[%emt 0:00:01]} Rf6 {[%emt 0:00:03]} 34. Nb3 {[%emt 0:00:01]} Ne4 {[%emt 0:00:02]} (34... dxc4 $2 {too greedy.} 35. Nc5+ Kc6 36. Ra1 $19) 35. Rd1 {[%emt 0:00:02]} Rf2+ {[%emt 0:00:02]} 36. Kc1 {[%emt 0:00:01]} c6 {[%emt 0:00:08][%cal Bc7c6,Bc6d5][%mdl 32]} (36... Rxg2 $2 37. cxd5 Rg3 38. dxe6+ Kxe6 39. Nd4+ Kf6 40. Re1 $19) 37. cxd5 {[%emt 0:00:01]} cxd5 {[%emt 0:00:02] Black is clearly winning.} (37... exd5 $2 {loses.} 38. Nd4 $19) 38. g4 {[%emt 0:00:05]} Rf3 {[%emt 0:00:03][%csl LRb3,LRh3] Prevents Rd3.} 39. Nd4 {[%emt 0:00:02]} Rxh3 {[%emt 0:00:02]} 40. b5 {[%emt 0:00:02]} axb5 {[%emt 0:00:02]} 41. Nxb5 {[%emt 0:00:00]} Nc3 {[%emt 0:00:01]} 42. Nxc3 {[%emt 0:00:05]} Rxc3+ {[%emt 0:00:02]} 43. Kd2 {[%emt 0:00:01]} Rg3 {[%emt 0:00:01]} 44. Rh1 {[%emt 0:00:02]} h6 {[%emt 0:00:01]} 45. Rh4 {[%emt 0:00:03]} Kd6 {[%emt 0:00:02] Weighted Error Value: White=0.49/Black=0.04 (flawless)} 0-1

[Event "4th Tata Steel India Blitz Women 2022"]
[Site "Kolkota"]
[Date "2022.12.04"]
[Round "17.4"]
[White "Kulkarni Bhakti"]
[Black "Koneru, Humpy"]
[Result "0-1"]
[ECO "E14"]
[WhiteElo "2359"]
[BlackElo "2574"]
[Annotator "TA"]
[PlyCount "82"]
[EventDate "2022.11.29"]
[EventType "tourn"]
[EventCountry "IND"]
[SourceTitle "playchess.com"]
[Source "ChessBase"]
[SourceQuality "1"]
[TimeControl "180+2"]

{[%evp 16,82,9,-2,0,0,0,0,8,-23,-9,-22,-12,-89,11,10,20,22,12,22,47,0,143,0,41,0,0,0,10,5,9,0,0,0,0,0,0,-8,8,7,10,9,9,9,17,28,0,0,0,0,0,-30,0,0,20,-537,-531,-529,-509,-566,-397,-1237,-760,-653,-566,-559,-541,-550,-493]} 1. d4 {[%emt 0:00:02]} Nf6 {[%emt 0:00:01]} 2. Nf3 {[%emt 0:00:05]} b6 {[%emt 0:00:02]} 3. e3 {[%emt 0:00:07]} Bb7 {[%emt 0:00:03]} 4. Bd3 {[%emt 0:00:02]} e6 {[%emt 0:00:06]} 5. O-O {[%emt 0:00:02]} d5 {[%emt 0:00:15]} 6. b3 {[%emt 0:00:03]} Bd6 {[%emt 0:00:08]} 7. c4 {[%emt 0:00:02]} Nbd7 {[%emt 0:00:07]} 8. Bb2 {[%emt 0:00:03] 8.cxd5 injects fresh life into this line.} O-O {[%emt 0:00:16]} 9. Ne5 {[%emt 0:00:10]} dxc4 {[%emt 0:01:04] E14: Queen's Indian: Classical Variation (4 e3).} 10. bxc4 {[%emt 0:00:35]} Bxe5 {[%emt 0:00:16]} 11. dxe5 {[%emt 0:00:03]} Ne4 {[%emt 0:00:02] [#] The position is equal.} 12. f3 $146 {[%emt 0:01:06]} (12. Qg4 {keeps more tension.} Nec5 13. Bc2 f6 14. exf6 Nxf6 15. Qe2) ({Predecessor:} 12. Qe2 Qe7 13. f3 Ndc5 14. Bxe4 {1-0 (14) Lagergren,H (1877)-Hellstroem,A ICCF email 2020}) 12... Nec5 {[%emt 0:00:07]} 13. Bc2 $1 {[%emt 0:00:02]} Qg5 {[%emt 0:00:08][%csl LRe3,LRe5]} 14. Qe2 {[%emt 0:00:05]} (14. Qe1 $11 {keeps the balance.}) 14... Rad8 {[%emt 0:00:20]} ({Black should try} 14... Nxe5 $17 15. Nd2 Rfd8) 15. f4 $11 {[%emt 0:00:12]} Qe7 {[%emt 0:00:04]} 16. Nd2 {[%emt 0:00:09]} Nb8 {[%emt 0:00:18]} 17. Rad1 {[%emt 0:00:07]} Nc6 {[%emt 0:00:04]} 18. Nf3 {[%emt 0:00:02]} (18. Ba3 $14) 18... Nb4 {[%emt 0:00:04] [#]} (18... Rxd1 $11 {remains equal.} 19. Rxd1 Nb4) 19. Bb1 {[%emt 0:00:04]} (19. Bxh7+ $1 $16 {[%mdl 512]} Kxh7 20. Ng5+ Kg8 21. Qh5) 19... Be4 {[%emt 0:00:05]} 20. Ba3 {[%emt 0:00:21]} (20. Bxe4 $5 Nxe4 21. Nd4 $11) 20... a5 {[%emt 0:00:05]} 21. Nd4 {[%emt 0:00:03]} Bxb1 {[%emt 0:00:04]} 22. Rxb1 {[%emt 0:00:01]} Rd7 {[%emt 0:00:02]} 23. h3 {[%emt 0:00:03]} f6 {[%emt 0:00:02]} 24. exf6 {[%emt 0:00:03]} Qxf6 {[%emt 0:00:01] aiming for ...Ne4.} 25. Bxb4 {[%emt 0:00:03]} axb4 {[%emt 0:00:02]} 26. Rxb4 {[%emt 0:00:01]} e5 {[%emt 0:00:05]} (26... Ne4 {looks sharper.} 27. Qc2 Rxd4 28. Kh2 Nd2) 27. fxe5 Qxe5 {[%emt 0:00:01] White must now prevent ...Rxf1+.} 28. Rxf8+ {[%emt 0:00:01]} Kxf8 29. Rb1 {[%emt 0:00:05]} Kg8 {[%emt 0:00:01] Strongly threatening ...Rxd4. Active counter play!} 30. Rf1 {[%emt 0:00:03]} h6 {[%emt 0:00:01][%cal Od7d4] Threatens to win with ...Rxd4!} (30... Rxd4 $2 31. Qf2 $18) (30... Ne4 {is interesting.} 31. Qg4 Nc5 32. Nf5 Kh8) 31. Qf3 {[%emt 0:00:02]} Qe8 {[%emt 0:00:02]} 32. Nf5 {[%emt 0:00:02]} Kh7 {[%emt 0:00:01]} 33. Qg4 {[%emt 0:00:03]} Rf7 {[%emt 0:00:02]} (33... g6 $5 {[%cal Rg6f5]} 34. Nh4 Qxe3+ 35. Rf2 Qe1+ 36. Rf1 Qe8 $15) 34. Qh5 {[%emt 0:00:08]} Qf8 {[%emt 0:00:02] ...g6 is the strong threat.} 35. g4 $2 {[%emt 0:00:06][%mdl 8192] Now White is beyond hope.} (35. Ng3 $11 {and White stays safe.} Rxf1+ 36. Nxf1) 35... g6 $19 {[%emt 0:00:02][%mdl 64] [#] Deflection, Double Attack} 36. Qh4 {[%emt 0:00:03]} gxf5 {[%emt 0:00:01]} 37. gxf5 {[%emt 0:00:01]} Rxf5 {[%emt 0:00:04]} 38. Rd1 {[%emt 0:00:02]} (38. Rxf5 Qxf5 39. Qe7+ Kg6 40. Qxc7) 38... Qg7+ {[%emt 0:00:03] Black is clearly winning.} 39. Kh1 {[%emt 0:00:01]} Rf7 {[%emt 0:00:02]} 40. Rg1 {[%emt 0:00:02]} Qf6 {[%emt 0:00:01]} 41. Qg4 {[%emt 0:00:02][%csl Gg1][%cal Rg4g8]} Qf3+ {[%emt 0:00:02] Weighted Error Value: White=0.48/Black=0.30} 0-1